bitfinex/quotes_SOLUSD_20241113
["timestamp","ask_amount","ask_price","bid_price","bid_amount"]
[1731493535648,22.42751023,206.67,206.59,20.0]
[1731493537442,23.776884,206.72,206.62,22.42751023]
[1731493537650,22.42751023,206.72,206.62,22.42751023]
[1731493537825,22.42751023,206.68,206.61,20.0]
[1731493538447,22.42751023,206.7,206.65,312.0]
[1731493539532,22.42751023,206.68,206.65,312.0]
[1731493542045,22.42751023,206.68,206.61,20.0]
[1731493542964,22.42751023,206.7,206.62,22.42751023]
[1731493543153,22.42751023,206.72,206.64,22.42751023]
[1731493543335,22.42751023,206.72,206.65,20.0]
[1731493543757,22.42751023,206.74,206.66,22.42751023]
[1731493543932,10.8863,206.79,206.68,22.42751023]
[1731493543933,22.42751023,206.76,206.68,22.42751023]
[1731493544259,22.42751023,206.78,206.7,22.42751023]
[1731493544436,22.42751023,206.78,206.72,22.42751023]
[1731493544632,22.42751023,206.8,206.72,22.42751023]
[1731493544854,22.42751023,206.8,206.73,20.0]
[1731493545057,22.42751023,206.8,206.75,312.0]
[1731493546169,4.835,206.83,206.75,312.0]
[1731493546170,22.42751023,206.83,206.75,312.0]
[1731493546352,22.42751023,206.83,206.75,20.0]
[1731493546839,22.42751023,206.83,206.76,22.42751023]
[1731493547456,22.42751023,206.85,206.76,22.42751023]
[1731493548041,22.42751023,206.87,206.8,22.42751023]
[1731493548259,4.8334,206.9,206.76,0.1]
[1731493548260,22.42751023,206.85,206.77,6.6338]
[1731493548456,22.42751023,206.83,206.75,20.0]
[1731493549446,22.42751023,206.83,206.74,39.08071023]
[1731493549643,22.42751023,206.83,206.74,22.42751023]
[1731493550464,22.42751023,206.8,206.73,20.0]
[1731493550660,22.42751023,206.82,206.74,22.42751023]
[1731493552369,22.42751023,206.82,206.75,312.0]
[1731493552551,27.26271023,206.82,206.75,312.0]
[1731493552751,15.1338,206.93,206.81,20.0]
[1731493552948,22.42751023,206.9,206.81,22.42751023]
[1731493553144,19.9664,206.93,206.74,0.1]
[1731493553145,22.42751023,206.88,206.8,20.0]
[1731493553752,22.42751023,206.88,206.79,22.42751023]
[1731493553953,22.42751023,206.88,206.8,20.0]
[1731493554267,22.42751023,206.92,206.84,22.42751023]
[1731493555443,22.42751023,206.94,206.86,22.42751023]
[1731493555951,22.42751023,206.94,206.86,334.42751023]
[1731493556352,22.42751023,206.94,206.86,22.42751023]
[1731493556758,22.42751023,206.96,206.87,20.0]
[1731493556947,22.42751023,206.96,206.88,22.42751023]
[1731493557160,22.42751023,206.94,206.87,20.0]
[1731493558161,22.42751023,206.96,206.88,22.42751023]
[1731493559372,22.42751023,206.96,206.88,334.42751023]
[1731493559749,27.25931023,206.96,206.88,334.42751023]
[1731493559951,22.42751023,206.94,206.86,22.42751023]
[1731493560177,22.42751023,206.9,206.82,22.42751023]
[1731493560371,22.42751023,206.88,206.8,22.42751023]
[1731493560667,27.25931023,206.96,206.86,22.42751023]
[1731493560872,42.96700023,206.98,206.9,22.42751023]
[1731493561772,22.42751023,206.96,206.88,22.42751023]
[1731493562152,27.25931023,206.96,206.88,22.42751023]
[1731493562866,27.25931023,206.96,206.88,334.42751023]
[1731493563164,4.8318,206.96,206.9,22.42751023]
[1731493563473,4.8318,206.96,206.88,334.42751023]
[1731493564864,4.8318,206.96,206.88,325.99712089]
[1731493566981,20.53959,206.98,206.9,13.99712089]
[1731493567177,20.53959,206.98,206.91,13.99712089]
[1731493568876,13.99712089,206.92,206.76,35.442561]
[1731493569189,13.99712089,206.88,206.79,13.99712089]
[1731493569774,13.99712089,206.88,206.81,13.99712089]
[1731493569968,13.99712089,206.9,206.81,13.99712089]
[1731493570176,18.82992089,206.92,206.83,13.99712089]
[1731493570690,18.82992089,206.92,206.74,2.19407698]
[1731493570691,13.99712089,206.88,206.73,22.3531]
[1731493570878,16.9147,206.92,206.73,22.3531]
[1731493570879,22.41670873,206.87,206.78,22.41670873]
[1731493571885,27.25070873,206.87,206.78,22.41670873]
[1731493573790,27.25070873,206.87,206.79,312.0]
[1731493574291,27.25120873,206.85,206.7,22.41670873]
[1731493574489,22.41670873,206.76,206.6,0.1]
[1731493574675,22.41670873,206.8,206.6,0.1]
[1731493574676,22.41670873,206.74,206.66,22.41670873]
[1731493575094,22.41670873,206.7,206.59,22.384]
[1731493575386,15.5105,206.76,206.59,22.384]
[1731493575387,22.41670873,206.68,206.6,22.41670873]
[1731493575970,22.41670873,206.68,206.54,0.12549]
[1731493575971,22.41670873,206.62,206.54,0.12549]
[1731493576370,22.41670873,206.62,206.56,22.41670873]
[1731493576571,21.4352,206.68,206.56,22.41670873]
[1731493576769,46.19359273,206.67,206.58,22.41670873]
[1731493577183,22.41670873,206.67,206.6,22.41670873]
[1731493577372,22.41670873,206.69,206.6,22.41670873]
[1731493578686,22.41670873,206.69,206.56,6.1138]
[1731493578687,22.41670873,206.71,206.63,22.41670873]
[1731493580795,22.41670873,206.71,206.64,312.0]
[1731493586287,43.85190873,206.73,206.65,22.41670873]
[1731493586476,37.55950873,206.73,206.65,22.41670873]
[1731493587498,22.41670873,206.75,206.67,22.41670873]
[1731493588588,22.41670873,206.77,206.69,22.41670873]
[1731493588787,23.0516,206.78,206.71,22.41670873]
[1731493589382,23.0516,206.78,206.72,312.0]
[1731493589793,16.5734,206.78,206.72,312.0]
[1731493591101,46.31908273,206.77,206.72,312.0]
[1731493594386,22.41670873,206.73,206.65,22.41670873]
[1731493594906,22.41670873,206.73,206.59,2.11469918]
[1731493595098,22.41670873,206.73,206.62,22.41670873]
[1731493595099,23.776884,206.7,206.62,22.41670873]
[1731493595608,22.41670873,206.69,206.62,22.41670873]
[1731493597102,23.776884,206.72,206.64,22.41670873]
[1731493600003,22.41670873,206.71,206.64,22.41670873]
[1731493600815,46.19359273,206.72,206.65,22.41670873]
[1731493602113,23.776884,206.72,206.65,22.41670873]
[1731493602504,46.19359273,206.72,206.64,22.41670873]
[1731493602889,46.19359273,206.72,206.64,14.02954005]
[1731493602890,37.80642405,206.72,206.64,14.02954005]
[1731493603090,6.4231,206.73,206.57,327.5947]
[1731493603091,23.776884,206.73,206.66,14.02954005]
[1731493604486,23.0367,206.78,206.69,14.02954005]
[1731493604686,14.02954005,206.75,206.68,14.02954005]
[1731493607809,37.80642405,206.77,206.68,14.02954005]
[1731493608497,27.8727,206.78,206.72,14.02954005]
[1731493608498,23.0367,206.78,206.72,14.02954005]
[1731493608908,16.5734,206.78,206.72,14.02954005]
[1731493609619,14.02954005,206.81,206.72,14.02954005]
[1731493614097,14.02954005,206.81,206.68,312.0]
[1731493614098,14.02954005,206.75,206.68,14.02954005]
[1731493617409,14.02954005,206.73,206.66,14.02954005]
[1731493617716,14.02954005,206.73,206.64,14.02954005]
[1731493621508,14.02954005,206.73,206.66,14.02954005]
[1731493622801,14.02954005,206.73,206.53,0.1]
[1731493622802,14.02954005,206.67,206.53,0.1]
[1731493623012,14.02954005,206.65,206.56,14.02954005]
[1731493624008,14.02954005,206.65,206.58,14.02954005]
[1731493628748,20.56004005,206.7,206.62,14.02954005]
[1731493628938,16.2208,206.72,206.66,14.02954005]
[1731493629312,6.6066,206.75,206.69,14.02954005]
[1731493629517,29.34544005,206.77,206.69,14.02954005]
[1731493629738,29.34544005,206.77,206.61,6.4207]
[1731493629739,15.3159,206.77,206.7,14.02954005]
[1731493630116,14.02954005,206.76,206.69,14.02954005]
[1731493630419,14.02954005,206.76,206.62,23.776884]
[1731493630420,14.02954005,206.76,206.7,14.02954005]
[1731493630618,29.34544005,206.77,206.7,14.02954005]
[1731493631131,29.34544005,206.77,206.68,14.02954005]
[1731493631710,29.34544005,206.77,206.71,312.0]
[1731493633221,20.50294005,206.8,206.72,14.02954005]
[1731493633413,6.4734,206.8,206.73,14.02954005]
[1731493634925,37.80642405,206.79,206.71,14.02954005]
[1731493635232,14.02954005,206.77,206.69,14.02954005]
[1731493636328,14.02954005,206.75,206.67,14.02954005]
[1731493636926,18.86624005,206.75,206.67,14.02954005]
[1731493637129,23.776884,206.68,206.56,6.0728]
[1731493637331,14.02954005,206.65,206.57,14.02954005]
[1731493637508,14.02954005,206.63,206.55,14.02954005]
[1731493638732,14.02954005,206.65,206.57,14.02954005]
[1731493639032,14.02954005,206.67,206.59,14.02954005]
[1731493639233,14.02954005,206.65,206.57,14.02954005]
[1731493639535,14.02954005,206.61,206.53,14.02954005]
[1731493640039,14.02954005,206.61,206.51,6.0728]
[1731493640040,14.02954005,206.63,206.55,14.02954005]
[1731493640244,14.02954005,206.63,206.55,326.02954005]
[1731493642842,0.12549,206.62,206.55,326.02954005]
[1731493643148,0.12549,206.62,206.55,14.02954005]
[1731493644849,14.02954005,206.67,206.59,14.02954005]
[1731493645026,6.2588,206.7,206.63,14.02954005]
[1731493645544,6.2588,206.7,206.65,14.02954005]
[1731493646535,6.1761,206.76,206.69,14.02954005]
[1731493646933,14.02954005,206.74,206.67,14.02954005]
[1731493647451,0.12549,206.73,206.65,14.02954005]
[1731493647846,14.02954005,206.72,206.63,14.02954005]
[1731493648427,23.776884,206.71,206.63,14.02954005]
[1731493649626,23.776884,206.71,206.63,326.02954005]
[1731493649850,25.04214005,206.76,206.67,14.02954005]
[1731493650153,0.12549,206.74,206.67,14.02954005]
[1731493650532,23.776884,206.73,206.65,14.02954005]
[1731493650728,14.02954005,206.72,206.65,14.02954005]
[1731493650927,23.776884,206.71,206.65,14.02954005]
[1731493651327,0.12549,206.7,206.65,14.02954005]
[1731493652235,23.776884,206.69,206.63,14.02954005]
[1731493652559,14.02954005,206.7,206.59,14.02954005]
[1731493652560,23.776884,206.65,206.59,14.02954005]
[1731493652735,23.776884,206.65,206.57,14.02954005]
[1731493653136,23.776884,206.65,206.57,326.02954005]
[1731493653552,14.02954005,206.64,206.57,14.02954005]
[1731493653858,23.776884,206.63,206.55,14.02954005]
[1731493655464,23.776884,206.64,206.59,14.02954005]
[1731493655751,16.4365,206.67,206.63,14.02954005]
[1731493655959,20.39154005,206.7,206.63,14.02954005]
[1731493656140,0.12549,206.69,206.63,14.02954005]
[1731493656542,14.02954005,206.68,206.61,14.02954005]
[1731493656965,23.776884,206.67,206.61,14.02954005]
[1731493657260,23.776884,206.67,206.59,14.02954005]
[1731493657465,23.776884,206.65,206.57,14.02954005]
[1731493657838,14.02954005,206.68,206.59,14.02954005]
[1731493658061,0.12549,206.66,206.59,14.02954005]
[1731493660143,23.776884,206.67,206.59,14.02954005]
[1731493660339,23.776884,206.67,206.61,14.02954005]
[1731493660544,23.776884,206.67,206.54,0.12549]
[1731493660545,6.362,206.7,206.63,14.02954005]
[1731493661042,0.12549,206.69,206.63,14.02954005]
[1731493661252,0.12549,206.69,206.61,14.02954005]
[1731493661551,0.12549,206.67,206.59,14.02954005]
[1731493661942,23.776884,206.65,206.59,14.02954005]
[1731493662848,23.776884,206.65,206.57,14.02954005]
[1731493663238,23.776884,206.65,206.59,14.02954005]
[1731493663445,23.776884,206.69,206.61,14.02954005]
[1731493663848,23.776884,206.67,206.59,14.02954005]
[1731493664146,23.776884,206.65,206.57,14.02954005]
[1731493664759,14.02954005,206.64,206.57,14.02954005]
[1731493664966,23.776884,206.63,206.57,14.02954005]
[1731493665844,23.776884,206.63,206.55,14.02954005]
[1731493667568,28.616484,206.63,206.55,14.02954005]
[1731493667749,23.776884,206.63,206.55,14.02954005]
[1731493668368,15.2849,206.62,206.55,14.02954005]
[1731493668579,23.776884,206.61,206.55,14.02954005]
[1731493672075,23.776884,206.61,206.54,0.12549]
[1731493674089,23.776884,206.59,206.54,0.12549]
[1731493674379,23.776884,206.57,206.54,0.12549]
[1731493674984,20.36174005,206.6,206.54,0.12549]
[1731493675287,23.776884,206.59,206.54,0.12549]
[1731493676379,28.617484,206.59,206.54,0.12549]
[1731493677771,23.776884,206.59,206.54,0.12549]
[1731493679260,28.617384,206.59,206.54,0.12549]
[1731493679887,23.776884,206.57,206.54,0.12549]
[1731493680273,23.776884,206.55,206.54,0.12549]
[1731493680580,37.80642405,206.55,206.54,0.12549]
[1731493680774,23.776884,206.55,206.54,0.12549]
[1731493681684,37.80642405,206.55,206.54,0.12549]
[1731493681862,42.64782405,206.55,206.54,0.12549]
[1731493682790,58.26542405,206.55,206.54,0.12549]
[1731493683465,20.5542,206.76,206.54,30.78253005]
[1731493683766,22.3981,206.9,206.74,14.02954005]
[1731493683970,14.02954005,206.87,206.78,14.02954005]
[1731493684367,14.02954005,206.83,206.74,14.02954005]
[1731493684888,14.02954005,206.8,206.71,14.02954005]
[1731493685077,14.02954005,206.76,206.67,14.02954005]
[1731493685281,14.02954005,206.7,206.62,14.02954005]
[1731493686194,14.02954005,206.72,206.62,14.02954005]
[1731493686486,23.776884,206.73,206.66,14.02954005]
[1731493686691,23.776884,206.73,206.6,34.02954005]
[1731493686692,0.12549,206.72,206.64,14.02954005]
[1731493686893,0.12549,206.72,206.64,22.44677481]
[1731493687274,22.44677481,206.75,206.66,22.44677481]
[1731493687775,22.44677481,206.75,206.68,22.44677481]
[1731493688079,0.12549,206.76,206.68,22.44677481]
[1731493688278,4.8357,206.8,206.72,22.44677481]
[1731493688279,22.44677481,206.8,206.72,22.44677481]
[1731493688485,22.44677481,206.84,206.7,22.44677481]
[1731493688811,29.07477481,206.9,206.82,22.44677481]
[1731493688998,16.0128,206.91,206.84,22.44677481]
[1731493689170,22.44677481,206.94,206.86,22.44677481]
[1731493689376,0.12549,206.93,206.86,22.44677481]
[1731493689586,22.44677481,206.92,206.84,22.44677481]
[1731493690003,22.44677481,206.92,206.75,0.1]
[1731493690004,22.44677481,206.94,206.86,22.44677481]
[1731493690497,33.92185407,206.96,206.86,22.44677481]
[1731493690999,0.12549,206.95,206.88,22.44677481]
[1731493691395,0.12549,206.95,206.86,22.44677481]
[1731493691700,23.902374,206.95,206.86,22.44677481]
[1731493691900,38.58506481,206.98,206.9,22.44677481]
[1731493692577,22.44677481,206.96,206.88,22.44677481]
[1731493692781,0.12549,206.95,206.88,22.44677481]
[1731493692974,22.44677481,206.96,206.88,22.44677481]
[1731493693178,38.58506481,206.98,206.9,22.44677481]
[1731493694302,23.902374,206.95,206.88,22.44677481]
[1731493696178,22.44677481,206.96,206.84,6.4923]
[1731493696179,23.776884,206.97,206.9,22.44677481]
[1731493696683,0.12549,206.96,206.9,22.44677481]
[1731493697098,23.776884,206.95,206.88,22.44677481]
[1731493700584,23.776884,206.95,206.9,22.44677481]
[1731493700804,23.776884,206.97,206.9,22.44677481]
[1731493700992,0.12549,206.96,206.9,22.44677481]
[1731493702499,23.776884,206.93,206.86,22.44677481]
[1731493703099,23.776884,206.93,206.88,22.44677481]
[1731493703496,22.44677481,206.91,206.73,42.83401569]
[1731493703703,23.776884,206.9,206.86,22.44677481]
[1731493703899,22.44677481,206.95,206.88,22.44677481]
[1731493704203,23.776884,206.94,206.88,22.44677481]
[1731493704599,0.12549,206.93,206.88,22.44677481]
[1731493705805,4.95819,206.93,206.88,22.44677481]
[1731493706312,0.12549,206.93,206.88,22.44677481]
[1731493706484,4.95809,206.93,206.88,22.44677481]
[1731493707006,23.776884,206.92,206.86,22.44677481]
[1731493707904,22.44677481,206.95,206.88,22.44677481]
[1731493708112,23.902374,206.94,206.88,22.44677481]
[1731493708804,23.902374,206.94,206.88,13.99873323]
[1731493709196,28.734674,206.94,206.88,13.99873323]
[1731493711325,23.902374,206.94,206.88,13.99873323]
[1731493711520,16.13829,206.98,206.91,13.99873323]
[1731493711815,16.13829,206.98,206.85,20.0]
[1731493711816,30.13702323,206.98,206.9,13.99873323]
[1731493712020,0.12549,206.96,206.89,13.99873323]
[1731493712501,4.95729,206.96,206.9,13.99873323]
[1731493712902,16.13829,206.98,206.93,13.99873323]
[1731493713391,0.12549,206.98,206.9,13.99873323]
[1731493713591,0.12549,206.98,206.97,13.99873323]
[1731493719116,0.12549,206.98,206.97,33.99873323]
[1731493722237,0.12549,206.98,206.97,13.99873323]
[1731493725417,0.12549,206.98,206.97,33.99873323]
[1731493725816,0.12549,206.98,206.97,13.99873323]
[1731493726016,0.12549,206.98,206.95,13.99873323]
[1731493727332,0.12549,206.98,206.97,13.99873323]
[1731493727534,0.12549,206.98,206.95,13.99873323]
[1731493727915,0.12549,206.98,206.93,13.99873323]
[1731493728318,28.733774,206.98,206.91,13.99873323]
[1731493728552,0.12549,206.96,206.83,22.201]
[1731493728723,23.776884,206.95,206.88,13.99873323]
[1731493729628,14.12422323,206.98,206.9,13.99873323]
[1731493729823,28.733674,206.98,206.92,13.99873323]
[1731493730030,23.902374,206.98,206.92,13.99873323]
[1731493731439,28.733774,206.98,206.92,13.99873323]
[1731493732236,23.902374,206.98,206.92,13.99873323]
[1731493732422,0.12549,206.98,206.94,13.99873323]
[1731493734125,0.12549,206.98,206.97,20.0]
[1731493743638,0.12549,206.98,206.96,13.99873323]
[1731493745139,0.12549,206.98,206.97,20.0]
[1731493746030,0.12549,206.98,206.97,20.1]
[1731493746545,0.12549,206.98,206.97,20.0]
[1731493747050,0.12549,206.98,206.94,20.0]
[1731493747235,0.12549,206.98,206.97,33.99873323]
[1731493752148,16.0201,207.09,206.97,33.99873323]
[1731493752149,16.0201,207.09,206.97,47.99746646]
[1731493752344,16.0201,207.09,207.06,13.99873323]
[1731493752539,16.0201,207.09,207.04,13.99873323]
[1731493752944,6.2173,207.13,207.08,13.99873323]
[1731493753167,6.2173,207.13,206.99,0.1]
[1731493753458,11.0452,207.13,207.07,13.99873323]
[1731493754464,23.902374,207.12,207.07,13.99873323]
[1731493754959,16.9240035,207.14,207.07,13.99873323]
[1731493755449,35.75043673,207.14,207.07,13.99873323]
[1731493755656,35.75043673,207.14,207.05,13.99873323]
[1731493755657,0.12549,207.13,207.05,13.99873323]
[1731493756446,23.902374,207.13,207.05,13.99873323]
[1731493756847,23.902374,207.11,207.05,13.99873323]
[1731493757871,23.902374,207.11,207.03,13.99873323]
[1731493759247,16.9240035,207.14,207.05,13.99873323]
[1731493759555,16.9240035,207.14,207.09,13.99873323]
[1731493760159,16.9240035,207.14,207.07,13.99873323]
[1731493761248,23.902374,207.13,207.07,13.99873323]
[1731493763254,28.730274,207.13,207.07,13.99873323]
[1731493763659,23.902374,207.13,207.07,13.99873323]
[1731493764176,28.730274,207.13,207.07,13.99873323]
[1731493764469,23.902374,207.13,207.05,13.99873323]
[1731493765054,28.730274,207.13,207.05,13.99873323]
[1731493765349,28.730274,207.13,207.07,13.99873323]
[1731493766172,16.9240035,207.14,207.07,13.99873323]
[1731493767871,0.4858035,207.14,207.11,13.99873323]
[1731493769052,0.4858035,207.14,207.13,13.99873323]
[1731493769461,0.4858035,207.14,207.13,33.99873323]
[1731493772166,0.4858035,207.14,207.13,34.09873323]
[1731493772355,0.4858035,207.14,207.13,33.99873323]
[1731493773173,15.55089,207.25,207.13,34.19873323]
[1731493773480,15.55089,207.25,207.22,13.99873323]
[1731493775476,15.55089,207.25,207.2,13.99873323]
[1731493775864,15.55089,207.25,207.18,13.99873323]
[1731493776066,15.55089,207.25,207.2,13.99873323]
[1731493776474,0.12549,207.25,207.2,13.99873323]
[1731493777377,0.12549,207.25,207.22,13.99873323]
[1731493778081,0.12549,207.25,207.24,13.99873323]
[1731493779972,0.12549,207.25,207.13,20.0]
[1731493780175,14.12422323,207.25,207.12,18.56296338]
[1731493780373,14.12422323,207.25,207.19,13.99873323]
[1731493780374,0.12549,207.25,207.19,13.99873323]
[1731493783592,0.12549,207.25,207.12,18.66296338]
[1731493783593,0.12549,207.25,207.21,13.99873323]
[1731493785286,0.12549,207.25,207.14,0.1]
[1731493785592,0.12549,207.25,207.2,13.99873323]
[1731493790839,0.12549,207.25,207.19,8.93142728]
[1731493791324,0.12549,207.25,207.2,20.0]
[1731493793122,0.12549,207.25,207.21,8.93142728]
[1731493793613,0.12549,207.25,207.13,20.1]
[1731493793814,0.12549,207.25,207.2,20.0]
[1731493794315,0.12549,207.25,207.19,8.93142728]
[1731493794725,4.8253,207.24,207.13,20.1]
[1731493795018,4.8253,207.24,207.03,7.00544643]
[1731493795019,8.93142728,207.19,207.07,17.69022049]
[1731493795200,8.93142728,207.19,207.12,8.93142728]
[1731493795384,23.776884,207.2,207.12,8.93142728]
[1731493795592,16.3777,207.21,207.16,8.93142728]
[1731493795996,16.3777,207.21,207.14,8.93142728]
[1731493796501,16.3777,207.21,207.15,20.0]
[1731493796716,32.83380128,207.2,207.12,8.93142728]
[1731493796889,37.86792054,207.2,207.12,13.96554654]
[1731493797209,23.776884,207.2,207.14,13.96554654]
[1731493797502,16.3777,207.21,207.12,13.96554654]
[1731493797706,13.96554654,207.2,207.12,13.96554654]
[1731493798000,13.96554654,207.2,207.13,20.0]
[1731493799479,23.902374,207.19,207.13,20.0]
[1731493799686,23.902374,207.19,207.12,13.96554654]
[1731493800708,13.96554654,207.2,207.12,13.96554654]
[1731493800903,13.96554654,207.2,207.13,20.0]
[1731493801416,13.96554654,207.18,207.1,13.96554654]
[1731493801606,13.96554654,207.18,207.11,20.0]
[1731493802811,23.776884,207.19,207.12,13.96554654]
[1731493804809,16.3777,207.21,207.14,13.96554654]
[1731493804998,6.1099,207.24,207.17,13.96554654]
[1731493805522,13.96554654,207.22,207.16,20.0]
[1731493805815,13.96554654,207.22,207.05,12.40057993]
[1731493805816,0.12549,207.21,207.13,13.96554654]
[1731493806005,13.96554654,207.2,207.13,13.96554654]
[1731493806394,0.12549,207.21,207.13,13.96554654]
[1731493807111,28.728374,207.21,207.13,13.96554654]
[1731493808507,23.776884,207.23,207.17,13.96554654]
[1731493808694,0.12549,207.25,207.19,13.96554654]
[1731493808903,0.12549,207.25,207.11,0.2]
[1731493808904,13.96554654,207.24,207.17,13.96554654]
[1731493809501,0.12549,207.25,207.17,13.96554654]
[1731493809700,0.12549,207.25,207.18,20.0]
[1731493810007,28.727674,207.25,207.18,20.0]
[1731493810410,23.902374,207.25,207.19,13.96554654]
[1731493810913,0.12549,207.25,207.19,13.96554654]
[1731493812823,4.95059,207.25,207.1,0.1]
[1731493813117,23.902374,207.25,207.17,13.96554654]
[1731493813307,0.12549,207.25,207.19,13.96554654]
[1731493814019,0.12549,207.25,207.21,13.96554654]
[1731493814920,0.12549,207.25,207.22,13.96554654]
[1731493815621,0.12549,207.25,207.24,13.96554654]
[1731493816130,0.12549,207.25,207.23,13.96554654]
[1731493816435,0.12549,207.25,207.24,13.96554654]
[1731493816825,0.12549,207.25,207.23,13.96554654]
[1731493817406,0.12549,207.25,207.24,13.96554654]
[1731493818009,0.12549,207.25,207.23,13.96554654]
[1731493818216,0.12549,207.25,207.23,20.0]
[1731493820816,0.12549,207.25,207.13,0.1]
[1731493821018,0.12549,207.25,207.19,8.92877366]
[1731493821219,0.12549,207.25,207.2,8.92877366]
[1731493821501,0.12549,207.25,207.19,8.92877366]
[1731493823724,32.83114766,207.25,207.18,20.0]
[1731493824711,37.65624766,207.25,207.17,8.92877366]
[1731493825527,37.65624766,207.25,207.11,15.049]
[1731493825528,0.12549,207.2,207.11,15.049]
[1731493825829,8.92877366,207.17,207.06,15.6377]
[1731493826027,23.776884,207.2,207.08,8.92877366]
[1731493826028,8.92877366,207.15,207.08,8.92877366]
[1731493826207,32.70565766,207.16,207.08,8.92877366]
[1731493826404,23.776884,207.16,207.09,8.92877366]
[1731493827614,8.92877366,207.14,207.06,8.92877366]
[1731493828416,0.12549,207.13,207.06,8.92877366]
[1731493828643,8.92877366,207.1,207.03,8.92877366]
[1731493828818,8.92877366,207.1,207.02,13.97810073]
[1731493828819,13.97810073,207.1,207.02,13.97810073]
[1731493829837,13.97810073,207.1,207.03,20.0]
[1731493830041,0.12549,207.11,207.04,13.97810073]
[1731493830334,23.902374,207.11,207.04,13.97810073]
[1731493830919,23.776884,207.11,207.06,13.97810073]
[1731493831239,20.5508,207.15,207.08,13.97810073]
[1731493831433,0.12549,207.14,207.08,13.97810073]
[1731493832643,0.12549,207.09,207.02,13.97810073]
[1731493832834,23.902374,207.09,207.02,13.97810073]
[1731493833238,23.776884,207.13,207.06,13.97810073]
[1731493833434,23.776884,207.13,207.08,13.97810073]
[1731493835447,23.776884,207.13,207.06,13.97810073]
[1731493837763,13.97810073,207.1,207.02,13.97810073]
[1731493837937,13.97810073,207.08,206.97,16.5164]
[1731493838125,13.97810073,207.08,207.0,13.97810073]
[1731493840147,13.97810073,207.04,206.96,13.97810073]
[1731493841030,18.80800073,207.04,206.96,13.97810073]
[1731493841233,23.902374,207.03,206.96,13.97810073]
[1731493841444,13.97810073,207.02,206.94,13.97810073]
[1731493841852,13.97810073,207.0,206.92,13.97810073]
[1731493842050,16.5217,207.06,206.99,13.97810073]
[1731493842051,30.49980073,207.06,206.99,13.97810073]
[1731493842644,23.776884,207.05,206.97,13.97810073]
[1731493843131,13.97810073,207.04,206.97,13.97810073]
[1731493844834,23.902374,207.03,206.97,13.97810073]
[1731493845039,23.776884,207.05,206.97,13.97810073]
[1731493845343,23.776884,207.05,206.99,13.97810073]
[1731493845938,23.776884,207.05,206.97,13.97810073]
[1731493846139,30.49980073,207.06,206.99,13.97810073]
[1731493846539,16.5217,207.06,206.99,13.97810073]
[1731493847258,16.5217,207.06,207.0,20.0]
[1731493847660,30.49980073,207.06,207.0,20.0]
[1731493847958,23.902374,207.05,206.99,13.97810073]
[1731493848363,13.97810073,207.04,206.9,6.0309]
[1731493848548,13.97810073,207.02,206.95,13.97810073]
[1731493848740,0.12549,207.01,206.93,13.97810073]
[1731493849064,13.97810073,207.0,206.92,13.97810073]
[1731493849756,23.902374,206.99,206.92,13.97810073]
[1731493850695,23.902374,206.97,206.9,13.97810073]
[1731493850895,0.12549,206.93,206.82,16.1212]
[1731493851082,23.902374,206.93,206.85,13.97810073]
[1731493851785,15.9442,206.97,206.89,13.97810073]
[1731493851991,23.776884,206.96,206.89,13.97810073]
[1731493852289,37.75498473,206.96,206.89,13.97810073]
[1731493854290,0.12549,206.95,206.87,13.97810073]
[1731493854602,37.75498473,206.96,206.89,13.97810073]
[1731493854989,15.9442,206.97,206.93,13.97810073]
[1731493857005,13.97810073,206.95,206.89,20.0]
[1731493858195,15.9442,206.97,206.91,13.97810073]
[1731493858500,15.9442,206.97,206.89,13.97810073]
[1731493860001,15.9442,206.97,206.92,13.97810073]
[1731493860204,15.9442,206.97,206.93,13.97810073]
[1731493860907,6.0745,207.0,206.95,13.97810073]
[1731493861206,15.566,207.02,206.96,13.97810073]
[1731493861886,15.566,207.02,206.86,0.1]
[1731493861887,29.54410073,207.02,206.95,13.97810073]
[1731493862501,23.776884,207.01,206.95,13.97810073]
[1731493863697,15.566,207.02,206.95,13.97810073]
[1731493864209,15.566,207.02,206.97,13.97810073]
[1731493864412,16.314,207.08,207.01,13.97810073]
[1731493864587,16.314,207.08,207.02,13.97810073]
[1731493865812,0.12549,207.07,207.01,13.97810073]
[1731493865994,0.12549,207.07,206.93,20.0]
[1731493865995,15.0673,207.13,207.06,13.97810073]
[1731493866197,15.0673,207.13,207.0,13.97810073]